bitfinex/quotes_BTCUSD_20251214
["timestamp","ask_amount","ask_price","bid_price","bid_amount"]
[1765736448838,0.58436483,88996.0,88995.0,0.00039136]
[1765736449033,0.59036483,88996.0,88995.0,0.00039136]
[1765736449462,0.58636483,88996.0,88995.0,1.36e-06]
[1765736449657,0.22483278,88955.0,88954.0,0.0004]
[1765736449859,0.25103278,88955.0,88954.0,0.0004]
[1765736450103,0.27474278,88955.0,88954.0,0.0004]
[1765736450237,0.27474278,88955.0,88954.0,0.00165078]
[1765736450238,0.38714278,88955.0,88954.0,0.00165078]
[1765736450447,0.27474278,88955.0,88954.0,0.00165078]
[1765736450852,0.27485831,88955.0,88954.0,0.00165078]
[1765736451779,0.27485831,88955.0,88954.0,0.00265078]
[1765736451948,0.38725831,88955.0,88954.0,0.00265078]
[1765736452714,0.38725831,88955.0,88954.0,0.00365078]
[1765736456331,0.47602759,88955.0,88954.0,0.00365078]
[1765736456536,0.38887118,88955.0,88954.0,0.00365078]
[1765736456993,0.38887118,88955.0,88954.0,0.00265078]
[1765736457196,0.67957118,88955.0,88954.0,0.00265078]
[1765736457370,0.68157118,88955.0,88954.0,0.00165078]
[1765736457931,0.67957118,88955.0,88954.0,0.00165078]
[1765736458319,0.68257118,88955.0,88954.0,0.00165078]
[1765736459088,0.39187118,88955.0,88954.0,0.00165078]
[1765736459359,0.39387118,88955.0,88954.0,0.00165078]
[1765736474783,0.01572553,88955.0,88954.0,0.00165078]
[1765736474983,0.14328553,88955.0,88954.0,0.00165078]
[1765736475384,0.16342553,88955.0,88954.0,0.00165078]
[1765736475582,0.16142553,88955.0,88954.0,0.00165078]
[1765736475748,0.16342553,88955.0,88954.0,0.00165078]
[1765736475961,0.16342553,88955.0,88954.0,0.00365078]
[1765736476148,0.16142553,88955.0,88954.0,0.00365078]
[1765736477561,0.00011553,88955.0,88954.0,0.06116078]
[1765736478412,0.00011553,88955.0,88954.0,1.55591278]
[1765736478974,0.00011553,88955.0,88954.0,1.84661278]
[1765736479488,0.00011553,88955.0,88954.0,1.93490424]
[1765736481477,0.01143,88977.0,88976.0,0.22477971]
[1765736481686,0.01143,88977.0,88976.0,0.22516569]
[1765736482147,0.01143,88983.0,88980.0,0.23600564]
[1765736482359,0.01143,88983.0,88980.0,0.01123848]
[1765736482360,0.0226681,88983.0,88980.0,0.01123848]
[1765736482575,0.02314,88982.0,88980.0,0.01123848]
[1765736484001,0.01516,88981.0,88977.0,0.01123885]
[1765736484151,0.01516,88981.0,88978.0,0.01123873]
[1765736484359,0.02314,88980.0,88978.0,0.01123873]
[1765736484575,0.02314,88980.0,88979.0,0.22477213]
[1765736484993,0.01143,88983.0,88982.0,0.22476455]
[1765736487421,0.03638,88983.0,88982.0,0.22476455]
[1765736487908,0.05255,88983.0,88982.0,0.22476455]
[1765736488066,0.05355,88983.0,88982.0,0.22476455]
[1765736488494,0.05255,88983.0,88982.0,0.22476455]
[1765736490374,0.23598906,88988.0,88982.0,0.22476455]
[1765736490375,0.03638,88992.0,88989.0,0.01123734]
[1765736490574,0.01143,88992.0,88989.0,0.23598215]
[1765736490791,0.01143,88992.0,88987.0,0.01123759]
[1765736490792,0.01617,88990.0,88987.0,0.01123759]
[1765736491024,0.1124,88988.0,88987.0,0.01123759]
[1765736492081,0.1124,88990.0,88987.0,0.23598751]
[1765736492346,0.001,88988.0,88987.0,0.23598751]
[1765736493153,0.002,88988.0,88987.0,0.23598751]
[1765736493575,0.001,88988.0,88987.0,0.23598751]
[1765736493926,0.001,88988.0,88987.0,0.23623147]
[1765736494274,0.04212,88988.0,88987.0,0.00024396]
[1765736494631,0.04312,88988.0,88987.0,0.00024396]
[1765736497342,0.01817,88988.0,88987.0,0.00024396]
[1765736498506,0.04312,88988.0,88987.0,0.00024396]
[1765736498994,0.01817,88988.0,88987.0,0.00024396]
[1765736500800,0.002,88988.0,88987.0,0.00024396]
[1765736501026,0.01817,88988.0,88987.0,0.00024396]
[1765736501330,0.04312,88988.0,88987.0,0.00024396]
[1765736502140,0.15713287,88988.0,88987.0,0.00024396]
[1765736502476,0.38188227,88988.0,88987.0,0.00024396]
[1765736507920,0.15713287,88988.0,88987.0,0.00024396]
[1765736512154,0.38188227,88988.0,88987.0,0.00024396]
[1765736512736,0.15713287,88988.0,88987.0,0.00024396]
[1765736521313,0.57269206,88988.0,88987.0,0.00024396]
[1765736521521,0.57269206,88988.0,88976.0,0.00038598]
[1765736521522,0.51547718,88977.0,88976.0,0.00038598]
[1765736521694,0.33723278,88955.0,88954.0,0.0004]
[1765736521900,0.36409278,88955.0,88954.0,0.0004]
[1765736522102,0.38825278,88955.0,88954.0,0.0004]
[1765736522718,0.38825278,88955.0,88954.0,0.00140679]
[1765736523899,0.39025278,88955.0,88954.0,0.00140679]
[1765736524758,0.27985278,88955.0,88954.0,0.00140679]
[1765736524971,0.39225278,88955.0,88954.0,0.00140679]
[1765736533011,0.27985278,88955.0,88954.0,0.00140679]
[1765736533219,0.39225278,88955.0,88954.0,0.00140679]
[1765736538729,0.41001278,88955.0,88954.0,0.00140679]
[1765736545402,0.39225278,88955.0,88954.0,0.00140679]
[1765736545613,0.41001278,88955.0,88954.0,0.00140679]
[1765736546433,0.39225278,88955.0,88954.0,0.00140679]
[1765736546646,0.41001278,88955.0,88954.0,0.00140679]
[1765736547034,0.39225278,88955.0,88954.0,0.00140679]
[1765736550988,0.35293278,88955.0,88954.0,0.00140679]
[1765736551189,0.0157,88955.0,88954.0,0.00140679]
[1765736551415,0.05554,88955.0,88954.0,0.00140679]
[1765736551629,0.16794,88955.0,88954.0,0.00140679]
[1765736552288,0.2806459,88955.0,88954.0,0.00140679]
[1765736552498,0.29117866,88955.0,88954.0,0.00140679]
[1765736552680,0.3154113,88955.0,88954.0,0.00140679]
[1765736555802,0.2027054,88955.0,88954.0,0.00140679]
[1765736556462,0.40330554,88955.0,88954.0,0.00140679]
[1765736556700,0.39277278,88955.0,88954.0,0.00140679]
[1765736557145,0.39277278,88955.0,88954.0,0.22624209]
[1765736557146,0.004,88955.0,88954.0,0.22624209]
[1765736557319,0.004,88955.0,88954.0,0.00140679]
[1765736557480,0.004,88955.0,88954.0,0.22624209]
[1765736557675,0.01952,88955.0,88954.0,0.22624209]
[1765736557931,0.04384,88955.0,88954.0,0.22624209]
[1765736558132,0.04184,88955.0,88954.0,0.22624209]
[1765736558333,0.01175,88956.0,88954.0,0.22624209]
[1765736558538,0.001,88955.0,88954.0,0.2252353]
[1765736558738,0.002,88955.0,88954.0,0.2252353]
[1765736559171,0.001,88955.0,88954.0,0.2252353]
[1765736560329,0.002,88955.0,88954.0,0.2252353]
[1765736563643,0.01752,88955.0,88954.0,0.2252353]
[1765736563845,0.04184,88955.0,88954.0,0.2252353]
[1765736564065,0.04184,88955.0,88954.0,0.0004]
[1765736564272,0.04184,88955.0,88954.0,0.00140679]
[1765736567695,0.15424,88955.0,88954.0,0.00140679]
[1765736581845,0.05424,88955.0,88954.0,0.00140679]
[1765736582051,0.12533517,88955.0,88954.0,0.00140679]
[1765736583967,0.13832517,88955.0,88954.0,0.00140679]
[1765736605300,0.25103107,88955.0,88954.0,0.00140679]
[1765736609383,0.01124113,88959.0,88954.0,0.00140679]
[1765736609578,0.01124125,88958.0,88954.0,0.01164176]
[1765736609923,0.11234517,88956.0,88955.0,0.01124163]
[1765736611679,0.11334517,88956.0,88955.0,0.01124163]
[1765736612099,0.11434517,88956.0,88955.0,0.01124163]
[1765736616735,0.14032517,88956.0,88955.0,0.01124163]
[1765736617161,0.14032517,88956.0,88955.0,0.0122179]
[1765736617747,0.01499,88956.0,88955.0,0.0122179]
[1765736617948,0.002,88956.0,88955.0,0.0122179]
[1765736618595,0.11434517,88956.0,88955.0,0.0122179]
[1765736620898,0.11434517,88956.0,88955.0,0.00097627]
[1765736620899,0.36515542,88956.0,88955.0,0.00097627]
[1765736625168,0.11434517,88956.0,88955.0,0.00097627]
[1765736625388,0.002,88956.0,88955.0,0.00097627]
[1765736626065,0.11434517,88956.0,88955.0,0.00097627]
[1765736629314,0.14032517,88956.0,88955.0,0.00097627]
[1765736629528,0.36515542,88956.0,88955.0,0.00097627]
[1765736629741,0.25281025,88956.0,88955.0,0.00097627]
[1765736629964,0.36515542,88956.0,88955.0,0.00097627]
[1765736633024,0.14032517,88956.0,88955.0,0.00097627]
[1765736636335,0.02798,88956.0,88955.0,0.22580905]
[1765736637051,0.14032517,88956.0,88955.0,0.22580905]
[1765736637258,0.12733517,88956.0,88955.0,0.22580905]
[1765736638721,0.002,88956.0,88955.0,0.22580905]
[1765736639474,0.001,88956.0,88955.0,0.22580905]
[1765736639673,0.001,88956.0,88955.0,0.22680905]
[1765736640438,0.01124062,88963.0,88959.0,0.23606313]
[1765736640611,0.02423062,88963.0,88959.0,0.23606313]
[1765736640791,0.01299,88960.0,88959.0,0.23606313]
[1765736641758,0.01299,88960.0,88955.0,0.001]
[1765736641759,0.01124113,88959.0,88955.0,0.001]
[1765736641916,0.01299,88960.0,88957.0,0.01124138]
[1765736642095,0.01299,88960.0,88957.0,0.23606716]
[1765736642296,0.01299,88958.0,88957.0,0.23606716]
[1765736642707,0.02598,88958.0,88957.0,0.01124138]
[1765736642921,0.02598,88958.0,88954.0,0.0004]
[1765736642922,0.11234517,88955.0,88954.0,0.0004]
[1765736643130,0.12533517,88955.0,88954.0,0.0004]
[1765736643337,0.13832517,88955.0,88954.0,0.0004]
[1765736644179,0.13832517,88955.0,88954.0,0.0014]
[1765736644180,0.14132517,88955.0,88954.0,0.0014]
[1765736645380,0.14132517,88955.0,88954.0,0.0004]
[1765736645886,0.14432517,88955.0,88954.0,0.0004]
[1765736646288,0.14432517,88955.0,88954.0,0.00140679]
[1765736653430,0.03198,88955.0,88954.0,0.00140679]
[1765736653836,0.14432517,88955.0,88954.0,0.00140679]
[1765736672797,0.15596946,88955.0,88954.0,0.00140679]
[1765736679590,0.16651049,88955.0,88954.0,0.00140679]
[1765736683723,0.45721049,88955.0,88954.0,0.00140679]
[1765736706765,0.45721049,88955.0,88935.0,0.0004]
[1765736706766,0.33722598,88936.0,88935.0,0.0004]
[1765736706984,0.48068188,88936.0,88935.0,0.00051553]
[1765736707133,0.49367188,88936.0,88935.0,0.00051553]
[1765736707547,0.50491844,88936.0,88935.0,0.00051553]
[1765736708384,0.50791844,88936.0,88935.0,0.00051553]
[1765736708586,0.51091844,88936.0,88935.0,0.00051553]
[1765736710615,0.51253131,88936.0,88935.0,0.00051553]
[1765736711689,0.80323131,88936.0,88935.0,0.00051553]
[1765736711876,0.82748705,88936.0,88935.0,0.00051553]
[1765736712315,0.88803127,88936.0,88935.0,0.00051553]
[1765736712442,0.88803127,88936.0,88935.0,0.00109543]
[1765736713432,0.88503127,88936.0,88935.0,0.00109543]
[1765736714073,0.88703127,88936.0,88935.0,0.00109543]
[1765736714253,0.99753889,88936.0,88935.0,0.00109543]
[1765736715071,0.88703127,88936.0,88935.0,0.00109543]
[1765736716335,0.87650544,88936.0,88935.0,0.00109543]
[1765736717388,0.87650544,88936.0,88906.0,0.0004]
[1765736717390,0.33729933,88907.0,88906.0,0.0004]
[1765736717584,0.35028933,88907.0,88906.0,0.0004]
[1765736717836,0.36327933,88907.0,88906.0,0.0004]
[1765736718034,0.37452931,88907.0,88906.0,0.00128548]
[1765736718572,0.66622931,88907.0,88906.0,0.00128548]
[1765736719132,0.82675532,88907.0,88906.0,1e-08]
[1765736719440,0.86145478,88907.0,88906.0,1e-08]
[1765736719664,0.86145478,88907.0,88850.0,0.22509774]
[1765736719665,0.33740058,88867.0,88847.0,0.0112553]
[1765736719812,0.36338058,88867.0,88847.0,0.0112553]
[1765736720016,0.36338058,88867.0,88846.0,0.0004]
[1765736720213,0.37624875,88867.0,88846.0,0.0004]
[1765736721036,0.37624875,88867.0,88846.0,0.01165543]
[1765736721294,0.37724875,88867.0,88846.0,0.0004]
[1765736721657,0.37824875,88867.0,88846.0,0.0004]
[1765736721861,0.37724875,88867.0,88846.0,0.0004]
[1765736722297,0.66894875,88867.0,88846.0,0.0004]
[1765736722440,0.71796714,88867.0,88846.0,0.0004]
[1765736722884,0.71996714,88867.0,88846.0,0.0004]
[1765736723302,0.71796714,88867.0,88846.0,0.0004]
[1765736723697,0.71996714,88867.0,88846.0,0.0004]
[1765736724996,0.71996714,88867.0,88847.0,0.0112553]
[1765736725176,0.73772714,88867.0,88866.0,0.00162211]
[1765736725581,0.68770875,88867.0,88866.0,0.00162211]
[1765736725795,0.66994875,88867.0,88866.0,0.00162211]
[1765736725988,0.39700875,88867.0,88866.0,0.00162211]
[1765736730466,0.68770875,88867.0,88866.0,0.00162211]
[1765736730988,0.98378959,88867.0,88866.0,0.00162211]
[1765736731178,0.45306356,88866.0,88846.0,0.0004]
[1765736731380,0.48946294,88866.0,88846.0,0.0004]
[1765736731552,0.51346123,88866.0,88846.0,0.0004]
[1765736731735,0.51796805,88866.0,88858.0,0.0002445]
[1765736731949,0.53572805,88866.0,88858.0,0.0002445]
[1765736732237,0.51172976,88866.0,88858.0,0.0002445]
[1765736732441,0.51222294,88866.0,88865.0,0.0014]
[1765736734089,0.51622294,88866.0,88865.0,0.0014]
[1765736736299,0.5402403,88866.0,88865.0,0.0014]
[1765736737533,0.5402403,88866.0,88865.0,0.0017855]
[1765736737534,0.65074792,88866.0,88865.0,0.0017855]
[1765736738096,0.79653924,88859.0,88858.0,0.0002445]
[1765736738415,0.84396598,88859.0,88858.0,0.0002445]
[1765736738633,0.84396598,88859.0,88846.0,0.0004]
[1765736738634,0.63420608,88847.0,88846.0,0.0004]
[1765736738833,0.63420608,88847.0,88820.0,0.0004]
[1765736738835,0.05001839,88839.0,88820.0,0.0004]
[1765736738992,0.41109998,88840.0,88820.0,0.0004]
[1765736738993,0.81609004,88835.0,88820.0,0.0004]
[1765736739199,0.86828678,88835.0,88820.0,0.0004]
[1765736739501,0.88127678,88835.0,88820.0,0.0004]
[1765736740106,0.88427678,88835.0,88820.0,0.0004]
[1765736740844,0.88527678,88835.0,88820.0,0.0004]
[1765736741182,0.38751779,88828.0,88820.0,0.0004]
[1765736741378,0.41092717,88828.0,88820.0,0.0004]
[1765736741581,0.83301717,88828.0,88827.0,1e-08]
[1765736741801,0.67823553,88821.0,88820.0,0.0004]
[1765736742047,0.86182227,88821.0,88820.0,0.0004]
[1765736742182,0.90480987,88821.0,88820.0,0.0004]
[1765736742812,0.87481227,88821.0,88820.0,0.0004]
[1765736743013,0.75641227,88821.0,88820.0,0.0004]
[1765736743330,0.87091989,88821.0,88820.0,0.0014]
[1765736743534,0.76041227,88821.0,88820.0,0.0014]
[1765736743692,0.76241227,88821.0,88820.0,0.0014]
[1765736743895,0.76041227,88821.0,88820.0,0.0014]
[1765736744282,0.75841227,88821.0,88820.0,0.0004]
[1765736744511,0.76041227,88821.0,88820.0,0.00256192]
[1765736744749,0.76202514,88821.0,88820.0,0.00256192]
[1765736745146,0.76002514,88821.0,88820.0,0.00156192]
[1765736745410,0.77713201,88821.0,88820.0,0.00256192]
[1765736745627,0.81715171,88821.0,88820.0,0.00256192]
[1765736745881,0.81515171,88821.0,88820.0,0.00256192]
[1765736746074,0.77613201,88821.0,88820.0,0.00256192]
[1765736746503,1.00792514,88821.0,88820.0,0.00256192]
[1765736746642,1.00792514,88821.0,88820.0,1e-08]
[1765736747088,0.67826088,88811.0,88797.0,0.1]
[1765736747290,0.72754313,88811.0,88797.0,0.1]
[1765736747498,1.01245049,88811.0,88810.0,1e-08]
[1765736747867,1.15678202,88811.0,88810.0,1e-08]
[1765736748231,1.0462744,88811.0,88810.0,1e-08]
[1765736748462,1.10639569,88811.0,88810.0,1e-08]
[1765736748842,1.11039569,88811.0,88810.0,0.00100001]
[1765736749042,1.11039569,88811.0,88810.0,1e-08]
[1765736749274,1.0502744,88811.0,88810.0,1e-08]
[1765736749483,1.16078202,88811.0,88810.0,1e-08]
[1765736749696,0.62827546,88798.0,88797.0,0.1]
[1765736749871,0.96740323,88798.0,88797.0,0.1]
[1765736750066,1.00441059,88798.0,88797.0,0.1]
[1765736750659,0.64416542,88798.0,88797.0,0.1]
[1765736750854,0.73249323,88798.0,88797.0,1e-08]
[1765736751033,0.75851059,88798.0,88797.0,0.00100001]
[1765736751234,0.75667304,88798.0,88797.0,1e-08]
[1765736751458,0.86901821,88798.0,88797.0,1e-08]
[1765736751859,0.67830146,88795.0,88794.0,1.21e-06]
[1765736752060,0.70171084,88795.0,88794.0,1.21e-06]
[1765736752265,0.75474406,88795.0,88794.0,1.21e-06]
[1765736752466,0.75474406,88795.0,88786.0,0.0004]
[1765736752467,0.6783649,88770.0,88769.0,0.00821361]
[1765736752789,0.71957428,88770.0,88769.0,0.00821361]
[1765736752944,0.73256428,88770.0,88769.0,0.00821361]
[1765736753962,0.73256428,88770.0,88769.0,0.00921361]
[1765736754177,0.39184589,88770.0,88769.0,0.00821361]
[1765736754638,0.39184589,88770.0,88769.0,0.00921361]
[1765736754940,0.39284589,88770.0,88769.0,0.01021361]
[1765736755288,0.73256428,88770.0,88769.0,0.00921361]
[1765736755589,0.73356428,88770.0,88769.0,0.01021361]
[1765736755996,0.73356428,88770.0,88769.0,0.00921361]
[1765736756224,0.73517715,88770.0,88769.0,0.00921361]
[1765736756653,0.57181359,88770.0,88769.0,0.00821361]
[1765736756777,0.57181359,88770.0,88769.0,0.01121361]
[1765736756981,0.57181359,88770.0,88769.0,0.00921361]
[1765736756982,0.55501359,88770.0,88769.0,0.00921361]
[1765736757182,0.23929134,88770.0,88769.0,0.00921361]
[1765736757418,0.36362651,88770.0,88769.0,0.00921361]
[1765736757676,0.36362651,88770.0,88769.0,0.00821361]
[1765736757878,0.36462651,88770.0,88769.0,0.00921361]
[1765736758093,0.36623938,88770.0,88769.0,0.00921361]
[1765736758295,0.36623938,88770.0,88769.0,0.00932929]
[1765736758296,0.66735239,88770.0,88769.0,0.00932929]
[1765736759043,0.66735239,88770.0,88769.0,0.01232929]
[1765736759687,0.68515239,88770.0,88769.0,0.01232929]
[1765736760634,0.13836105,88770.0,88769.0,0.01232929]
[1765736760844,0.12794804,88770.0,88769.0,0.01232929]
[1765736761322,0.14093804,88770.0,88769.0,0.01232929]
[1765736761536,0.13993804,88770.0,88769.0,0.01132929]
[1765736762024,0.13993804,88770.0,88769.0,0.00832929]
[1765736762195,0.13993804,88770.0,88769.0,0.01032929]
[1765736762774,0.13993804,88770.0,88769.0,0.01132929]
[1765736763184,0.22526927,88783.0,88769.0,0.01132929]
[1765736763185,0.0065,88782.0,88779.0,0.01126392]
[1765736763344,0.11234517,88780.0,88779.0,0.01126392]
[1765736763559,0.12533517,88780.0,88779.0,0.01126392]
[1765736763754,0.11234517,88777.0,88776.0,0.0112643]
[1765736763965,0.0112624,88791.0,88785.0,0.23652537]
[1765736764199,0.11234517,88786.0,88785.0,0.23652537]
[1765736764406,0.11234517,88786.0,88780.0,0.01126379]
[1765736764407,0.11234517,88783.0,88780.0,0.01126379]
[1765736764604,0.11234517,88781.0,88780.0,0.23653941]
[1765736764997,0.01126151,88798.0,88793.0,0.2365045]
[1765736765198,0.01776138,88799.0,88790.0,0.01126252]
[1765736765199,0.01126176,88796.0,88791.0,0.23650839]
[1765736765378,0.01126176,88796.0,88790.0,0.01126252]
[1765736765379,0.12533517,88791.0,88790.0,0.23651082]
[1765736765580,0.36103273,88791.0,88790.0,0.0009178]
[1765736765782,0.37402273,88791.0,88790.0,0.0009178]
[1765736766309,0.37502273,88791.0,88790.0,0.0009178]
[1765736766506,0.37502273,88791.0,88790.0,0.0029178]
[1765736766507,0.13678468,88791.0,88790.0,0.0029178]
[1765736766688,0.13678468,88791.0,88790.0,0.22816839]
[1765736766868,0.13578468,88791.0,88790.0,0.22816839]
[1765736767079,0.12379468,88791.0,88790.0,0.23016839]
[1765736767311,0.12379468,88791.0,88790.0,0.26830839]
[1765736767853,0.11334517,88791.0,88790.0,0.26830839]
[1765736768069,0.11234517,88791.0,88790.0,0.24370839]
[1765736768284,0.11234517,88791.0,88790.0,0.26430839]
[1765736768661,0.11234517,88791.0,88790.0,0.26830839]
[1765736768872,0.11234517,88791.0,88790.0,0.24570839]
[1765736769050,0.0065,88799.0,88790.0,0.24570839]
[1765736769051,0.11234517,88804.0,88802.0,0.011261]
[1765736769399,0.11234517,88804.0,88799.0,0.2364887]
[1765736769400,0.11234517,88800.0,88799.0,0.2364887]
[1765736769647,0.13582601,88800.0,88799.0,0.01126138]
[1765736770248,0.13582601,88800.0,88799.0,0.01164734]
[1765736770452,0.13582601,88800.0,88799.0,0.2368751]
[1765736770608,0.12283601,88800.0,88799.0,0.2368751]
[1765736770992,0.12383601,88800.0,88799.0,0.2388751]
[1765736771240,0.13682601,88800.0,88799.0,0.01364734]
[1765736771441,0.13682601,88800.0,88799.0,0.2388751]
[1765736771840,0.12383601,88800.0,88799.0,0.2398751]
[1765736772047,0.12383601,88800.0,88799.0,0.2780151]
[1765736772048,0.01149084,88800.0,88799.0,0.2780151]
[1765736772272,0.001,88800.0,88799.0,0.2780151]
[1765736772836,0.001,88800.0,88799.0,0.2398751]
[1765736773182,0.01049281,88808.0,88807.0,0.22520747]
[1765736773367,0.11234517,88809.0,88807.0,0.22520747]
[1765736773557,0.01299,88808.0,88807.0,0.22520747]
[1765736773972,0.11234517,88809.0,88807.0,0.22520747]
[1765736774150,0.11234517,88809.0,88805.0,0.01126062]
[1765736774151,0.12360529,88809.0,88805.0,0.01126062]
[1765736775011,0.12360529,88809.0,88803.0,0.00052001]
[1765736775012,0.0112605,88806.0,88803.0,0.00052001]
[1765736775147,0.23646517,88808.0,88805.0,0.01126062]
[1765736775344,0.11234517,88806.0,88805.0,0.01126062]
[1765736775547,0.11234517,88806.0,88805.0,0.01526062]
[1765736775755,0.11234517,88806.0,88805.0,0.01126062]
[1765736776003,0.11234517,88818.0,88814.0,0.01125948]
[1765736776198,0.23643291,88821.0,88815.0,0.02263935]
[1765736776370,0.11234517,88816.0,88815.0,0.23644653]
[1765736776573,0.11234517,88816.0,88815.0,0.01125935]
[1765736776974,0.11234517,88816.0,88815.0,0.23644653]
[1765736777211,0.11234517,88820.0,88819.0,0.01125885]
[1765736777964,0.12533517,88820.0,88817.0,0.0112591]
[1765736778141,0.01299,88819.0,88817.0,0.0112591]
[1765736778301,0.01299,88818.0,88817.0,0.0112591]
[1765736778532,0.12360389,88820.0,88815.0,0.005]
[1765736778533,0.11234517,88816.0,88815.0,0.005]
[1765736778745,0.36612269,88816.0,88815.0,0.005]
[1765736778949,0.38392269,88816.0,88815.0,0.003]
[1765736779151,0.38392269,88816.0,88799.0,0.00038596]
[1765736779152,0.33757039,88800.0,88799.0,0.00038596]
[1765736779533,0.35056039,88800.0,88799.0,0.00038596]
[1765736779776,0.36355039,88800.0,88799.0,0.00038596]
[1765736780297,0.36455039,88800.0,88799.0,0.00438596]
[1765736781464,0.33857039,88800.0,88799.0,0.00638596]
[1765736781663,0.35156039,88800.0,88799.0,0.00438596]
[1765736781824,0.36355039,88800.0,88799.0,0.00102836]
[1765736782163,0.36355039,88800.0,88799.0,0.00402836]
[1765736782810,0.36355039,88800.0,88799.0,0.00102836]
[1765736783042,0.36455039,88800.0,88799.0,0.00202836]
[1765736785700,0.11334517,88800.0,88799.0,0.00202836]
[1765736785896,0.001,88800.0,88799.0,0.05266103]
[1765736786070,0.001,88800.0,88799.0,0.05491666]
[1765736787819,0.0112591,88817.0,88813.0,0.01125961]
[1765736788021,0.0112591,88817.0,88814.0,0.22518972]
[1765736788580,0.11234517,88818.0,88814.0,0.2364492]
[1765736788997,0.11234517,88818.0,88813.0,0.01125961]
[1765736788998,0.01299,88815.0,88813.0,0.01125961]
[1765736789201,0.0242491,88817.0,88814.0,0.01125948]
[1765736789419,0.01299,88816.0,88814.0,0.01225948]
[1765736789618,0.01299,88815.0,88814.0,0.01325948]
[1765736789837,0.01299,88815.0,88814.0,0.002]
[1765736790775,0.22518972,88814.0,88807.0,0.01126037]
[1765736790983,0.11234517,88811.0,88810.0,0.23645985]
[1765736791370,0.22518406,88817.0,88810.0,0.23645985]
[1765736791371,0.11234517,88819.0,88818.0,0.01125897]
[1765736791987,0.22516113,88826.0,88818.0,0.01125897]
[1765736791988,0.0065,88824.0,88821.0,0.01125859]
[1765736792188,0.0065,88824.0,88821.0,0.23643019]
[1765736792627,0.11234517,88822.0,88821.0,0.23643019]
[1765736793050,0.11234517,88822.0,88821.0,0.01125859]
[1765736793550,0.11234517,88820.0,88819.0,0.23643589]
[1765736794777,0.11234517,88820.0,88819.0,0.23743589]
[1765736794979,0.11234517,88820.0,88819.0,0.01225885]
[1765736795609,0.11234517,88820.0,88819.0,0.01425885]
[1765736795816,0.13832517,88820.0,88819.0,0.003]
[1765736796207,0.01125847,88822.0,88819.0,0.003]
[1765736796208,0.11234517,88828.0,88827.0,0.01125783]
[1765736796749,0.11234517,88828.0,88827.0,0.23641277]
[1765736797434,0.11234517,88828.0,88827.0,0.23652845]
[1765736797982,0.11234517,88828.0,88827.0,0.23752845]
[1765736798230,0.01775657,88837.0,88834.0,0.01125695]
[1765736798231,0.0065,88837.0,88834.0,0.01125695]
[1765736798587,0.11234517,88838.0,88835.0,0.2363933]
[1765736798813,0.11234517,88838.0,88837.0,0.25287142]
[1765736799971,0.11884517,88846.0,88845.0,0.22511114]
[1765736800770,0.01125555,88845.0,88837.0,0.002]
[1765736800997,0.23973175,88838.0,88837.0,0.002]
[1765736801166,0.23973175,88838.0,88807.0,0.24932688]
[1765736801167,0.22515423,88828.0,88810.0,0.01125999]
[1765736801340,0.22515423,88828.0,88814.0,0.01125948]
[1765736801341,0.35210227,88828.0,88814.0,0.01125948]
[1765736801677,0.36509227,88828.0,88815.0,0.01125935]
[1765736801876,0.36509227,88828.0,88816.0,0.01125923]
[1765736802078,0.36509227,88828.0,88814.0,0.01125948]
[1765736802257,0.36509227,88828.0,88822.0,0.01125847]
[1765736802461,0.01299,88828.0,88825.0,0.23641782]
[1765736802670,0.11234517,88829.0,88825.0,0.23641782]
[1765736803012,0.1386859,88828.0,88814.0,0.01125948]
[1765736803168,0.25264394,88828.0,88810.0,0.01125999]
[1765736803385,0.25264394,88828.0,88827.0,0.00111568]
[1765736803630,0.25464394,88828.0,88827.0,0.00111568]
[1765736803826,0.12694804,88828.0,88827.0,0.00011568]
[1765736804014,0.13993804,88828.0,88827.0,0.00111568]
[1765736804225,0.14293804,88828.0,88827.0,0.00111568]
[1765736804508,0.13993804,88828.0,88827.0,0.00011568]
[1765736804883,0.14093804,88828.0,88827.0,0.00111568]
[1765736805921,0.13993804,88828.0,88827.0,0.00111568]
[1765736806308,0.14193804,88828.0,88827.0,0.00011568]
[1765736806512,0.14293804,88828.0,88827.0,0.00011568]
[1765736807294,0.25564394,88828.0,88827.0,0.00011568]
[1765736807703,0.14293804,88828.0,88827.0,0.00011568]
[1765736810319,0.54634394,88828.0,88827.0,0.00011568]
[1765736810525,0.63107651,88828.0,88827.0,0.00011568]
[1765736811183,0.74158413,88828.0,88827.0,0.00011568]
[1765736811385,0.63107651,88828.0,88827.0,0.00011568]
[1765736812134,0.63007651,88828.0,88827.0,0.00011568]
[1765736812376,0.64787651,88828.0,88827.0,0.00011568]
[1765736812572,0.64987651,88828.0,88827.0,0.00011568]
[1765736812781,0.64787651,88828.0,88827.0,0.00011568]
[1765736812953,0.53517061,88828.0,88827.0,0.00011568]
[1765736813168,0.53817061,88828.0,88827.0,0.00011568]
[1765736813372,0.63307651,88828.0,88827.0,0.00011568]
[1765736813702,0.65087651,88828.0,88827.0,0.00011568]
[1765736814056,0.58305812,88828.0,88827.0,0.00011568]
[1765736814265,0.60085812,88828.0,88827.0,0.00011568]
[1765736815610,0.65087651,88828.0,88827.0,0.00011568]
[1765736815809,0.68108028,88828.0,88827.0,0.00011568]
[1765736816031,0.61334748,88828.0,88827.0,0.00011568]
[1765736816197,0.60085812,88828.0,88827.0,0.00011568]
[1765736816798,0.29235812,88828.0,88827.0,0.00011568]
[1765736817063,0.32546233,88828.0,88827.0,0.00011568]
[1765736817220,0.61616233,88828.0,88827.0,0.00011568]
[1765736817419,0.64037007,88828.0,88827.0,0.00011568]
[1765736817621,0.89878501,88828.0,88827.0,0.00011568]
[1765736817831,0.92907437,88828.0,88827.0,0.00011568]
[1765736818032,1.04747437,88828.0,88827.0,0.00011568]
[1765736818376,0.89878501,88828.0,88827.0,0.00011568]
[1765736820020,0.92907437,88828.0,88827.0,0.00011568]
[1765736820230,0.89878501,88828.0,88827.0,0.00011568]
[1765736820616,0.92907437,88828.0,88827.0,0.00011568]
[1765736821025,1.00059191,88828.0,88827.0,0.00011568]
[1765736821367,0.89878501,88828.0,88827.0,0.00011568]
[1765736821760,0.88097684,88828.0,88827.0,0.00011568]
[1765736822007,0.72554578,88828.0,88827.0,0.00011568]
[1765736822179,0.72354578,88828.0,88827.0,0.00011568]
[1765736822425,0.72454578,88828.0,88827.0,0.00111568]
[1765736822684,0.72854578,88828.0,88827.0,0.00111568]
[1765736822889,0.42984578,88828.0,88827.0,0.00011568]
[1765736823020,0.15973804,88828.0,88827.0,0.00011568]
[1765736823222,0.45243804,88828.0,88827.0,0.00011568]
[1765736828110,0.16173804,88828.0,88827.0,0.00011568]
[1765736828835,0.15973804,88828.0,88827.0,0.00011568]
[1765736829255,0.15973804,88828.0,88827.0,0.00111568]
[1765736829426,0.15773804,88828.0,88827.0,0.00111568]